Cogmind - Beta 14 @@@ ROGUE MODE // 2024.09.13 @ 00:00:22 Player: Maulwurf Result: Destroyed by G-47 Trooper with Particle Gun Performance ------------- Evolutions (3) 1500 Regions Visited (6) 1200 Robots Destroyed (45) 225 Value Destroyed (1275) 1275 Prototype IDs (0) 0 Alien Tech Used (0) 0 Bonus (59) 59 TOTAL SCORE: 4259 Bonus ------- High Alert Combat Kills 59 Cogmind --------- Core Integrity 0/700 Matter 295/300 Energy 100/100 System Corruption 0% Temperature Cool (9) Movement Core (50) Location -7/Storage Parts ------- > --- POWER (2) -------- (None) > --- PROPULSION (4) --- (None) > --- UTILITY (4) ------ Improved Signal Interpreter Melee Analysis Suite > --- WEAPON (3) ------- (None) > --- INVENTORY (5) ---- Terrain Scan Processor Core Analyzer Lightning Gun Beam Rifle Improved EM Pulse Cannon Peak State ------------ > --- POWER ------------ Light Nuclear Core Light Nuclear Core > --- PROPULSION ------- Aluminum Leg Aluminum Leg Aluminum Leg Aluminum Leg > --- UTILITY ---------- Medium Storage Unit Improved Signal Interpreter Melee Analysis Suite Reflective Plating > --- WEAPON ----------- Spread Laser Datajack Katana > --- INVENTORY -------- Terrain Scan Processor Core Analyzer Lightning Gun Lightning Gun Beam Rifle Improved EM Pulse Cannon [Rating: 28] Favorites ----------- Power Light Ion Engine Engine Light Ion Engine Power Core Light Nuclear Core Propulsion Light Treads Treads Light Treads Leg Aluminum Leg Flight Unit Flight Unit Utility Small Storage Unit Device Seismic Detector Storage Small Storage Unit Processor Melee Analysis Suite Protection Reflective Plating Weapon Light Assault Rifle Energy Gun Spread Laser Ballistic Gun Light Assault Rifle Launcher Grenade Launcher Impact Weapon Powered Hammer Slashing Weapon Katana Special Melee Weapon Datajack Build | -11 -10 -10 -9 -8 -7 -7 ------- Run | Yrd Mat Min Mat Mat Fac Sto Slots Evolved 6 | . . . 2 2 2 . Power 1 | . . . . 1 . . Propulsion 2 | . . . 1 1 . . Utility 2 | . . . 1 . 1 . Weapon 1 | . . . . . 1 . Parts Attached 46 | 7 . . 14 21 4 . Power 8 | 1 . . 2 5 . . Engine 5 | 1 . . 2 2 . . Core 3 | . . . . 3 . . Reactor . | . . . . . . . Propulsion 16 | 2 . . 6 8 . . Treads 6 | 2 . . 3 1 . . Leg 9 | . . . 3 6 . . Wheel . | . . . . . . . Hover . | . . . . . . . Flight 1 | . . . . 1 . . Utility 10 | 2 . . 4 2 2 . Device 3 | 1 . . 1 1 . . Storage 2 | 1 . . . 1 . . Processor 2 | . . . 1 . 1 . Hackware . | . . . . . . . Protection 3 | . . . 2 . 1 . Artifact . | . . . . . . . Weapon 12 | 2 . . 2 6 2 . Energy Gun 3 | . . . . 2 1 . Energy Cannon . | . . . . . . . Ballistic Gun 3 | 2 . . 1 . . . Ballistic Cannon . | . . . . . . . Launcher 2 | . . . 1 1 . . Special Weapon . | . . . . . . . Impact Weapon 2 | . . . . 2 . . Slashing Weapon 1 | . . . . 1 . . Piercing Weapon . | . . . . . . . Special Melee Weapon 1 | . . . . . 1 . Unidentified Prototypes . | . . . . . . . Parts Lost 34 | . . . 6 17 . 11 Power 7 | . . . 2 3 . 2 Propulsion 12 | . . . 1 7 . 4 Utility 5 | . . . . 3 . 2 Weapon 10 | . . . 3 4 . 3 Highest Loss Streak 10 | . . . 4 3 . 10 To Critical Strikes . | . . . . . . . Average Slot Usage (%) 77 | . 100 100 78 64 98 67 Engine 5 | . 14 14 3 3 . . Core 2 | . . . . 1 15 10 Treads 13 | . 28 28 13 11 . . Leg 8 | . . . 14 5 30 16 Device 8 | . 14 14 10 6 . . Storage 11 | . 14 14 11 10 7 5 Processor 7 | . . . 7 9 13 15 Energy Gun 2 | . . . . 3 7 5 Ballistic Gun 9 | . 28 28 13 . . . Launcher 1 | . . . 3 1 . . Impact Weapon 3 | . . . . 8 . . Slashing Weapon 1 | . . . . 1 7 5 Peak Build Rating 28 | 7 7 7 12 22 28 28 Average Rating 12 | 5 7 7 8 15 26 21 On Entrance 10 | . 7 7 7 10 17 28 Naked Turns . | . . . . . . . Heaviest Build 33 | 11 11 11 14 33 30 30 Greatest Support 83 | 40 40 40 60 83 40 40 Greatest Overweight (x) 10 | . . . 2 10 . . Average Overweight (x) . | . . . . 1 . . Largest Inventory Capacity 10 | 8 8 8 8 10 10 10 Average Capacity 8 | 7 8 8 8 9 10 8 Most Carried 8 | 5 8 8 8 8 6 6 Average Carried 5 | 3 5 8 5 5 3 5 Final Capacity 10 | 8 8 8 8 10 10 5 Final Carried 8 | 4 8 8 7 4 6 5 Class Distribution -------------------- 72% | Mutant 18% | Scavenger-Mutant 8% | Gladiator Dominant Class ---------------- Mutant | -10/Materials Mutant | -10/Mines Mutant | -9/Materials Mutant | -8/Materials Scavenger-Mutant | -7/Factory Scavenger-Mutant | -7/Storage Resources | -11 -10 -10 -9 -8 -7 -7 ----------- Run | Yrd Mat Min Mat Mat Fac Sto Matter Collected 759 | 253 73 6 187 240 . . Remotely . | . . . . . . . Salvage Created 1499 | 64 125 41 339 930 . . Parts 73 | 5 9 8 17 34 . . Haulers Intercepted . | . . . . . . . Recyclers Shooed . | . . . . . . . Parts Field Recycled . | . . . . . . . Retrieved Matter . | . . . . . . . Parts Self-Destructed . | . . . . . . . Prevented . | . . . . . . . Kills | -11 -10 -10 -9 -8 -7 -7 ------- Run | Yrd Mat Min Mat Mat Fac Sto Combat Hostiles Destroyed 37 | . 3 3 9 22 . . Melee 12 | . . . . 12 . . Guns 15 | . 3 3 9 . . . AOE 2 | . . . . 2 . . Classes Destroyed 8 | 2 1 1 3 1 . . Worker 2 | 1 . . . 1 . . Builder 4 | . . . . 4 . . Tunneler 2 | 2 . . . . . . Swarmer 11 | . . 3 3 5 . . Grunt 17 | . 3 . 3 11 . . Brawler 1 | . . . 1 . . . Duelist 1 | . . . 1 . . . Sentry 7 | . . . 1 6 . . Best Kill Streak 4 | 1 3 3 4 4 . . Combat Bots Only 4 | . 3 3 4 4 . . Max Kills in Single Turn 1 | 1 1 1 1 1 . . Gunslinging . | . . . . . . . Exploded 1 | . . . . 1 . . Melee 1 | . . . . 1 . . Uniques/NPCs Destroyed . | . . . . . . . Combat | -11 -10 -10 -9 -8 -7 -7 -------- Run | Yrd Mat Min Mat Mat Fac Sto Hostile Shots Fired 478 | . 18 5 77 191 . 187 Missed 121 | . 3 4 23 42 . 49 Damage Taken 4408 | . 161 8 878 2012 . 1349 Core 1379 | . 31 . 138 510 . 700 Absorbed by Shields . | . . . . . . . Ignored by Resistances 46 | . . . . . . 46 Core Remaining (%) 64 | 100 . 87 65 7 . . Volleys Fired 90 | 12 16 3 45 14 . . Largest 2 | 2 2 2 2 1 . . Hottest 45 | 40 40 40 40 45 . . Shots Fired 155 | 24 32 6 79 14 . . Gun 145 | 24 32 6 79 4 . . Cannon . | . . . . . . . Launcher 10 | . . . . 10 . . Special . | . . . . . . . Kinetic 141 | 24 32 6 79 . . . Thermal . | . . . . . . . Explosive 10 | . . . . 10 . . Electromagnetic 4 | . . . . 4 . . Robot Hit Streak 20 | 5 8 6 16 20 . . Robot Miss Streak 4 | 3 4 2 4 4 . . Penetration Max . | . . . . . . . Secondary Targets 3 | . . . 3 . . . Max Gunslinging Chain 1 | . . . 1 . . . Shots Hit Robots 154 | 14 23 4 52 59 . 2 Core Hits 64 | 8 7 4 23 21 . 1 Critical Kills 2 | . . . 1 1 . . Critical Parts Destroyed 7 | . . . . 7 . . Critical Strikes 9 | . . . 1 8 . . Destroy 1 | . . . 1 . . . Smash 8 | . . . . 8 . . Melee Attacks 62 | . . . . 59 . 3 Impact 42 | . . . . 42 . . Slashing 20 | . . . . 17 . 3 Piercing . | . . . . . . . Sneak Attacks 6 | . . . . 6 . . Combat Hostiles 3 | . . . . 3 . . Follow-up Attacks 3 | . . . . 3 . . Damage Inflicted 3364 | 134 174 38 426 2525 . 67 Guns 797 | 134 174 38 426 25 . . Cannons . | . . . . . . . Explosions 259 | . . . . 259 . . Melee 2308 | . . . . 2241 . 67 Ramming . | . . . . . . . Kinetic 772 | 134 174 38 426 . . . Thermal . | . . . . . . . Explosive 259 | . . . . 259 . . Electromagnetic 25 | . . . . 25 . . Impact 1880 | . . . . 1880 . . Slashing 428 | . . . . 361 . 67 Piercing . | . . . . . . . Highest Corruption . | . . . . . . . Average Corruption . | . . . . . . . Corruption Purged . | . . . . . . . Corruption Blocked . | . . . . . . . Overload Shots . | . . . . . . . Overflow Damage 559 | . . . . 559 . . Projectiles 8 | . . . . 8 . . Explosions . | . . . . . . . Melee 551 | . . . . 551 . . Knockbacks 4 | . . . . 4 . . Impact 3 | . . . . 3 . . Kinetic . | . . . . . . . Secondary 1 | . . . . 1 . . Self-Inflicted Damage 13 | . . . . 13 . . Shots 1 | . . . . 1 . . Rammed 2 | . . . 2 . . . Targets Rammed 2 | . . . 2 . . . Kicked . | . . . . . . . Crushed . | . . . . . . . Highest Temperature 12 | . 12 . 7 2 . 12 Average Temperature 6 | . 8 . 3 2 . 5 Received Heat Transfer 1437 | . 90 . 114 693 . 540 Siege Activations . | . . . . . . . Robots Corrupted 11 | . . . . 11 . . Combat Hostiles 8 | . . . . 8 . . Parts Fried 13 | . . . . 13 . . Impact Corruptions 26 | . . . . 26 . . Robots Melted . | . . . . . . . Combat Hostiles . | . . . . . . . Parts Melted . | . . . . . . . Heat Transferred . | . . . . . . . Parts Sabotaged . | . . . . . . . Parts Stolen . | . . . . . . . Parts Stripped . | . . . . . . . Power Chain Reactions . | . . . . . . . Alert | -11 -10 -10 -9 -8 -7 -7 ------- Run | Yrd Mat Min Mat Mat Fac Sto Peak Influence 522 | 15 109 112 195 522 196 94 Initial 196 | . 9 42 43 . 196 89 Average 161 | 6 32 108 77 301 196 61 Maximum Alert Level 2 | . . . . 2 . . Low Security (%) 70 | 100 100 100 100 25 100 100 Level 1 22 | . . . . 58 . . Level 2 6 | . . . . 16 . . Level 3 . | . . . . . . . Level 4 . | . . . . . . . Level 5 . | . . . . . . . High Security . | . . . . . . . Max Security . | . . . . . . . Squads Dispatched 4 | . 1 . . 2 . 1 Investigation 2 | . 1 . . 1 . . Extermination . | . . . . . . . Reinforcement 2 | . . . . 1 . 1 Assault . | . . . . . . . Garrison . | . . . . . . . Intercept . | . . . . . . . Searches Triggered . | . . . . . . . Construction Impeded . | . . . . . . . Haulers Reinforced . | . . . . . . . Active Scanning Responses . | . . . . . . . Cargo Convoy Interrupts . | . . . . . . . Stealth | -11 -10 -10 -9 -8 -7 -7 --------- Run | Yrd Mat Min Mat Mat Fac Sto Distress Signals 4 | . 1 . . 3 . . Communications Jammed . | . . . . . . . Distress Signals . | . . . . . . . Times Spotted 67 | . 8 2 11 39 . 7 Peak Tracking Total 10 | . 4 2 4 10 . 7 Tactical Retreats 5 | . . . . 5 . . Traps | -11 -10 -10 -9 -8 -7 -7 ------- Run | Yrd Mat Min Mat Mat Fac Sto Traps Triggered 4 | . 1 . 1 1 . 1 Indirectly . | . . . . . . . Trap Hack Attempts . | . . . . . . . Triggered . | . . . . . . . Disarmed . | . . . . . . . Reprogrammed 5 | . . . 5 . . . Reused . | . . . . . . . Traps Extracted . | . . . . . . . Installed . | . . . . . . . Triggered . | . . . . . . . Machines | -11 -10 -10 -9 -8 -7 -7 ---------- Run | Yrd Mat Min Mat Mat Fac Sto Machines Disabled 1 | . . . . 1 . . Max in Single Turn 1 | . . . . 1 . . Machines Repaired . | . . . . . . . Machines Dismantled . | . . . . . . . Machines Sabotaged . | . . . . . . . Overloaded Fab Kills . | . . . . . . . Hacking | -11 -10 -10 -9 -8 -7 -7 --------- Run | Yrd Mat Min Mat Mat Fac Sto Machines Accessed 7 | . 2 . 2 2 . 1 Terminals 7 | . 2 . 2 2 . 1 Fabricators . | . . . . . . . Repair Stations . | . . . . . . . Recycling Units . | . . . . . . . Scanalyzers . | . . . . . . . Garrison Access . | . . . . . . . Total Hacks 17 | . 3 . 8 4 . 2 Successful 8 | . 3 . 3 2 . . Failed 9 | . . . 5 2 . 2 Catastrophic 1 | . . . . . . 1 Database Lockouts . | . . . . . . . Manual . | . . . . . . . Terminals 17 | . 3 . 8 4 . 2 Fabricators . | . . . . . . . Repair Stations . | . . . . . . . Recycling Units . | . . . . . . . Scanalyzers . | . . . . . . . Garrison Access . | . . . . . . . Terminal Hacks 8 | . 3 . 3 2 . . Robot Analysis 2 | . 2 . . . . . Branch Access Points 1 | . . . . 1 . . Unreport Threat 1 | . . . 1 . . . Locate Traps 1 | . . . 1 . . . Reprogram Traps 1 | . . . 1 . . . Transport Status 1 | . 1 . . . . . Zone Layout 1 | . . . . 1 . . Fabricator Hacks . | . . . . . . . Repair Station Hacks . | . . . . . . . Recycling Unit Hacks . | . . . . . . . Scanalyzer . | . . . . . . . Garrison Access Hacks . | . . . . . . . Unauthorized Hacks . | . . . . . . . Terminals . | . . . . . . . Fabricators . | . . . . . . . Repair Stations . | . . . . . . . Recycling Units . | . . . . . . . Scanalyzers . | . . . . . . . Garrison Access . | . . . . . . . Data Cores Recovered . | . . . . . . . Used . | . . . . . . . Hacking Detections 4 | . 1 . 1 1 . 1 Full Trace Events 1 | . . . . 1 . . Feedback Events . | . . . . . . . Feedback Blocked . | . . . . . . . Robot Schematics Acquired . | . . . . . . . Robots Built . | . . . . . . . Authchips . | . . . . . . . Time . | . . . . . . . Total Robot Build Rating . | . . . . . . . Part Schematics Acquired . | . . . . . . . Parts Built . | . . . . . . . Authchips . | . . . . . . . Time . | . . . . . . . Total Part Build Rating . | . . . . . . . Parts Repaired . | . . . . . . . Time . | . . . . . . . Parts Recycled . | . . . . . . . Recycled Matter . | . . . . . . . Retrieved Matter . | . . . . . . . Retrieved Components . | . . . . . . . Parts Scanalyzed . | . . . . . . . Part Schematics Acquired . | . . . . . . . Parts Damaged . | . . . . . . . Bothacking | -11 -10 -10 -9 -8 -7 -7 ------------ Run | Yrd Mat Min Mat Mat Fac Sto Used RIF Installer . | . . . . . . . Robots Hacked . | . . . . . . . Non-combat . | . . . . . . . Combat . | . . . . . . . Robot Hacks Applied . | . . . . . . . Relay Couplers Released . | . . . . . . . Fabnet Peak Effective % . | . . . . . . . Robots Rewired . | . . . . . . . Allies Hacked . | . . . . . . . Hacks Repelled . | . . . . . . . Allies | -11 -10 -10 -9 -8 -7 -7 -------- Run | Yrd Mat Min Mat Mat Fac Sto Total Allies . | . . . . . . . Largest Group . | . . . . . . . Highest-Rated Group . | . . . . . . . Highest-Rated Ally . | . . . . . . . Total Orders . | . . . . . . . Ally Attacks . | . . . . . . . Total Damage . | . . . . . . . Kills . | . . . . . . . Allies Corrupted . | . . . . . . . Allies Melted . | . . . . . . . Intel | -11 -10 -10 -9 -8 -7 -7 ------- Run | Yrd Mat Min Mat Mat Fac Sto Robot Analysis Total 2 | . 2 . . . . . Derelict Logs Recovered . | . . . . . . . Drone Launches . | . . . . . . . Drone Recoveries . | . . . . . . . Exploration | -11 -10 -10 -9 -8 -7 -7 ------------- Run | Yrd Mat Min Mat Mat Fac Sto Turns Passed 2166 | 157 344 60 505 853 151 96 Spaces Moved 900 | 70 141 33 215 285 118 38 Core 64 | 4 . . 1 59 . . Treads 479 | 66 141 33 108 131 . . Legs 344 | . . . 106 82 118 38 Wheels . | . . . . . . . Hover . | . . . . . . . Flight 13 | . . . . 13 . . Fastest Speed 50 | 50 160 160 120 120 120 120 Average Speed 162 | 153 160 160 140 207 120 120 Slowest Speed 550 | 160 160 160 160 550 120 120 Overloaded Moves . | . . . . . . . Propulsion Burnouts . | . . . . . . . Robots Hopped . | . . . . . . . Cave-ins Triggered . | . . . . . . . Exploration Rate (%) 16 | 6 30 13 20 30 2 14 Regions Visited 6 Branch Regions 2 Pre-discovered Areas . | . . . . . . . Known Exits Taken 1 | . . . . . 1 . Unknown Exits Taken 5 | 1 1 1 1 1 . . Scrap Searched . | . . . . . . . Spaces Dug . | . . . . . . . Terrain Destroyed 58 | . . . . 58 . . Melee . | . . . . . . . Projectile . | . . . . . . . AOE 58 | . . . . 58 . . Terrain Rammed . | . . . . . . . Walls Destroyed . | . . . . . . . Machines Disabled . | . . . . . . . Actions | -11 -10 -10 -9 -8 -7 -7 --------- Run | Yrd Mat Min Mat Mat Fac Sto Total 1376 | 100 234 36 357 439 127 83 Wait 225 | 1 74 1 64 43 . 42 Move 894 | 69 140 32 214 284 117 38 Hop . | . . . . . . . Pick Up 52 | 11 4 . 13 18 6 . Fast Attach 1 | . . . 1 . . . Attach 45 | 7 . . 13 21 4 . Detach 2 | . . . 1 1 . . Swap . | . . . . . . . Drop 6 | . . . 4 2 . . Fire 90 | 12 16 3 45 14 . . Melee 59 | . . . . 56 . 3 Ram . | . . . . . . . Kick . | . . . . . . . Crush 2 | . . . 2 . . . Escape Stasis . | . . . . . . . Rewire . | . . . . . . . Trap . | . . . . . . . Miscellaneous . | . . . . . . . Route ------- -11/Scrapyard -10/Materials -10/Mines -9/Materials -8/Materials -7/Factory -7/Storage History --------- Turn | Location | Event 36 | -11/Scrapyard | Discovered new exit (range 16) 158 | -11/Scrapyard | Entered Materials 311 | -10/Materials | Build established: Mutant 489 | -10/Materials | Discovered new exit (range 8) 502 | -10/Materials | Entered Mines 553 | -10/Mines | Discovered new exit (range 6) 562 | -10/Mines | Entered Materials 562 | -9/Materials | Evolved 2 slots: Propulsion x1, Utility x1 914 | -9/Materials | Lost 4 parts (1p1n2w) 1005 | -9/Materials | Discovered new exit (range 16) 1067 | -9/Materials | Entered another Materials area 1067 | -8/Materials | Evolved 2 slots: Power x1, Propulsion x1 1466 | -8/Materials | Lost 3 parts (2n1w) 1506 | -8/Materials | Lost 3 parts (2n1u) 1670 | -8/Materials | Lost 3 parts (2p1w) 1722 | -8/Materials | Core integrity fell below 50% 1749 | -8/Materials | Lost 3 parts (1n1u1w) 1763 | -8/Materials | Core integrity fell below 20% 1905 | -8/Materials | Discovered new exit (range 10) 1920 | -8/Materials | Entered Factory 1920 | -7/Factory | Evolved 2 slots: Utility x1, Weapon x1 2066 | -7/Factory | Discovered new exit (range 4) 2070 | -7/Factory | Identified exit to Storage 2071 | -7/Factory | Entered Storage 2123 | -7/Storage | Build established: Scavenger-Mutant 2154 | -7/Storage | Core integrity fell below 50% 2164 | -7/Storage | Core integrity fell below 20% 2167 | -7/Storage | Destroyed by G-47 Trooper with Particle Gun Last Messages --------------- 02082_ O-24 Administrator: "IFF HANDSHAKE FAILED. SECURING TERMINAL." 02085_ Triggered Heavy Explosive Trap. 02085_ An explosion rips through the floor. 02085_ Datajack destroyed. 02086_ ALERT: Hostiles spotted, dispatching reinforcements to Terminal S013. 02087_ K-01 Serf collects debris. 02090_ The unstable cave ceiling collapses. 02105_ K-01 Serf collects debris. 02118_ Aluminum Leg destroyed. 02125_ U-05 Engineer builds a Wall. 02127_ Aluminum Leg destroyed. 02129_ U-05 Engineer builds a Wall. 02133_ Lgt. Nuclear Core destroyed. 02134_ Reflective Plating destroyed. 02137_ Aluminum Leg destroyed. 02140_ Med. Storage Unit destroyed. 02143_ Lgt. Nuclear Core destroyed. 02147_ Katana destroyed. 02147_ Spread Laser destroyed. Map ----- +----------------------------------------------------+ | ???????????????????????????????????? | | ??????????????????????????#####????? | | ???????????????"G?????????# #????? | | ???????????????" ?????????# #????? | | ??????????????? ????????# #????? | | ??????????????? ????????# #????? | | ??????????????? ????????# #????? | | ????????????# ????????# ##???? | | ????????????# """ "???????# T#???? | | ????????????# """ "???????# ##???? | | ????????????? """ "???##### #????? | | ????????#T????? ???# # ##???? | | ????##### "######/##### #???? | | ??? #???? | | ??? #???? | | ??? #???? | | ???????####+#### ### # # #???? | | ???????????????# #############???? | | ???????????????# # #?????? | | ???????????????# # #?????? | | ???????????????# # g g #?????? | | ???????????????# ou #?????? | | ?????????????#"" # """g""" #?????? | | ?????????????#"Y # """ """r##????? | | ?????????????#"" # """Y""" #????? | | ?????????????### # g @ g ##????? | | ???????????????# ###########?????? | | ???????????????# #???????????????? | | ???????????????# #???????????????? | | ???????????????# #???????????????? | | ???????????????# #???????????????? | | ???????????????# #???????????????? | | ???????????????# ????????????????? | | ???????????????# ????????????????? | | ???????????????+ ????????????????? | | ???????????????? ????????????????? | | ???????????????????????????????????? | | ???????????????????????????????????? | | ???????????????????????????????????? | | ???????????????????????????????????? | | ???????????????????????????????????? | | ???????????????????????????????????? | | ???????????????????????????????????? | | ???????????????????????????????????? | | ???????????????????????????????????? | | ???????????????????????????????????? | | ???????????????????????????????????? | | ???????????????????????????????????? | | ???????????????????????????????????? | | ???????????????????????????????????? | +----------------------------------------------------+ Best States ------------- Heat Dissipation 34 Energy Generation 23 Energy Capacity 305 Matter Stores 300 Matter Capacity 300 Sight Range 16 Terrain Scan Density 10 Armor Coverage 150 Resistance: TH 10 Evasion (%) 55 Melee Accuracy 5 Recoil Reduction 3 Item Schematics ----------------- None Robot Schematics ------------------ None Fabricated ------------ Nothing Alien Tech Used ----------------- None Achievements -------------- None Challenges ------------ None Game ------ Seed SpreadGhostExpander Manual? 0 Play Time 00:32:54 Cumulative 10.3 hours Start 2024.09.12 @ 23:27:38 End 2024.09.13 @ 00:00:22 Sessions 1 Manual Loads 0 Difficulty Rogue Special Mode None Game No. 24 Rogue 24 Adventurer 0 Explorer 0 Win Type - Total 0 Types 0/0/0/0/0/0/0/0/0 Lore% 11 Gallery% 9 Achievement% 14 Wizard Run 0 Options --------- Layout 0 ASCII 0 Keyboard 1 Movement Numpad Keybinds 0 Fullscreen 1 Font 18/SmallcapsGlow Map View 76x50 Zoom Use 0% Tactical HUD 1 Map Filters NONE Filters NONE Steam 1 RUN: 927fe040-b6dc-42c6-b92d-98c67f79a2ff